[Event "*** Titled Tuesday Blitz"]
[Site "Chess.com"]
[Date "2021.02.16"]
[Round "1"]
[White "AlexNovitz"]
[Black "zeitnot2006"]
[Result "0-1"]
[WhiteElo "2191"]
[BlackElo "2527"]
[TimeControl "180+1"]
[EndTime "10:08:47 PST"]
[Termination "zeitnot2006 won on time"]

1. e4 {[%clk 0:03:00.9]} 1... c5 {[%clk 0:02:56.4]} 2. Nf3 {[%clk 0:03:00.6]}
2... e6 {[%clk 0:02:54.8]} 3. d4 {[%clk 0:03:00.7]} 3... cxd4 {[%clk 0:02:55.7]}
4. Nxd4 {[%clk 0:03:01.4]} 4... Nc6 {[%clk 0:02:55.7]} 5. Nc3 {[%clk 0:03:01.6]}
5... Qc7 {[%clk 0:02:55.5]} 6. Be2 {[%clk 0:03:00.3]} 6... a6 {[%clk 0:02:54.1]}
7. O-O {[%clk 0:02:59.7]} 7... Nf6 {[%clk 0:02:53.8]} 8. Be3 {[%clk 0:02:59.6]}
8... Be7 {[%clk 0:02:53.3]} 9. Qd2 {[%clk 0:02:59.1]} 9... d6 {[%clk 0:02:46.2]}
10. f4 {[%clk 0:02:58.4]} 10... O-O {[%clk 0:02:43.3]} 11. Bf3 {[%clk
0:02:58.4]} 11... Bd7 {[%clk 0:02:40.8]} 12. g4 {[%clk 0:02:57.7]} 12... Nxd4
{[%clk 0:02:32.5]} 13. Bxd4 {[%clk 0:02:57.2]} 13... e5 {[%clk 0:02:28.6]} 14.
Be3 {[%clk 0:02:50.2]} 14... exf4 {[%clk 0:02:18.8]} 15. Bxf4 {[%clk 0:02:46.7]}
15... Bxg4 {[%clk 0:02:14.7]} 16. Bxg4 {[%clk 0:02:44.6]} 16... Nxg4 {[%clk
0:02:15.6]} 17. Nd5 {[%clk 0:02:44.1]} 17... Qc5+ {[%clk 0:02:08.2]} 18. Kh1
{[%clk 0:02:44.3]} 18... Bh4 {[%clk 0:02:03.4]} 19. Bg3 {[%clk 0:02:03.6]} 19...
Bxg3 {[%clk 0:01:54.2]} 20. hxg3 {[%clk 0:02:04.5]} 20... Rae8 {[%clk
0:01:47.1]} 21. Rae1 {[%clk 0:02:00.7]} 21... Re5 {[%clk 0:01:39.3]} 22. Kg2
{[%clk 0:01:54.9]} 22... Rfe8 {[%clk 0:01:22.9]} 23. Rf4 {[%clk 0:01:53.3]}
23... h5 {[%clk 0:01:12.9]} 24. Nc3 {[%clk 0:01:31.5]} 24... b5 {[%clk 0:00:49]}
25. a3 {[%clk 0:01:29.5]} 25... a5 {[%clk 0:00:37.6]} 26. Ref1 {[%clk 0:01:24]}
26... Ne3+ {[%clk 0:00:36.2]} 27. Kh3 {[%clk 0:01:22]} 27... Nxf1 {[%clk
0:00:36.3]} 28. Rxf1 {[%clk 0:01:22.9]} 28... b4 {[%clk 0:00:24.8]} 29. Nd5
{[%clk 0:01:17.7]} 29... Rxd5 {[%clk 0:00:20.4]} 30. exd5 {[%clk 0:01:14.8]}
30... Re5 {[%clk 0:00:14]} 31. axb4 {[%clk 0:01:12.4]} 31... axb4 {[%clk
0:00:14.9]} 32. c4 {[%clk 0:01:02.4]} 32... bxc3 {[%clk 0:00:14.6]} 33. bxc3
{[%clk 0:01:03.3]} 33... Qxd5 {[%clk 0:00:12.1]} 34. Qf4 {[%clk 0:00:52.6]}
34... Qe6+ {[%clk 0:00:11.8]} 35. Kh2 {[%clk 0:00:52.9]} 35... Re2+ {[%clk
0:00:11.7]} 36. Rf2 {[%clk 0:00:53.4]} 36... Rxf2+ {[%clk 0:00:11.3]} 37. Qxf2
{[%clk 0:00:54.3]} 37... Qe5 {[%clk 0:00:11.2]} 38. Kh3 {[%clk 0:00:38.2]} 38...
Qxc3 {[%clk 0:00:09.8]} 39. Qf5 {[%clk 0:00:38.6]} 39... Qe5 {[%clk 0:00:08.2]}
40. Qc8+ {[%clk 0:00:35.1]} 40... Kh7 {[%clk 0:00:07.7]} 41. Qc2+ {[%clk
0:00:35.3]} 41... g6 {[%clk 0:00:07.9]} 42. Qd2 {[%clk 0:00:30.6]} 42... Kg7
{[%clk 0:00:07.1]} 43. Kg2 {[%clk 0:00:29.5]} 43... d5 {[%clk 0:00:07.3]} 44.
Kh2 {[%clk 0:00:25.9]} 44... h4 {[%clk 0:00:06.7]} 45. Kh1 {[%clk 0:00:25.4]}
45... hxg3 {[%clk 0:00:06]} 46. Kg2 {[%clk 0:00:23.4]} 46... d4 {[%clk
0:00:05.3]} 47. Qd3 {[%clk 0:00:21.1]} 47... f5 {[%clk 0:00:02.9]} 48. Qa6
{[%clk 0:00:19.4]} 48... Qf6 {[%clk 0:00:02.7]} 49. Qb7+ {[%clk 0:00:19.4]}
49... Kh6 {[%clk 0:00:02.8]} 50. Kxg3 {[%clk 0:00:19.4]} 50... f4+ {[%clk
0:00:03.1]} 51. Kf3 {[%clk 0:00:19.2]} 51... Qf5 {[%clk 0:00:03.5]} 52. Qb2
{[%clk 0:00:13.1]} 52... d3 {[%clk 0:00:03.1]} 53. Qh8+ {[%clk 0:00:12.6]} 53...
Kg5 {[%clk 0:00:03.6]} 54. Qh2 {[%clk 0:00:11.3]} 54... Kf6 {[%clk 0:00:03.7]}
55. Qh8+ {[%clk 0:00:10]} 55... Ke7 {[%clk 0:00:03.5]} 56. Qd4 {[%clk
0:00:08.1]} 56... Kf7 {[%clk 0:00:03.7]} 57. Qc4+ {[%clk 0:00:07.6]} 57... Kg7
{[%clk 0:00:03.9]} 58. Qc7+ {[%clk 0:00:07.1]} 58... Qf7 {[%clk 0:00:04]} 59.
Qc3+ {[%clk 0:00:06.1]} 59... Qf6 {[%clk 0:00:04.2]} 60. Qc7+ {[%clk 0:00:05.9]}
60... Kg8 {[%clk 0:00:04.5]} 61. Qc4+ {[%clk 0:00:05.2]} 61... Kf8 {[%clk
0:00:04.7]} 62. Qxd3 {[%clk 0:00:04.6]} 62... g5 {[%clk 0:00:04.6]} 63. Kg4
{[%clk 0:00:04.6]} 63... Kg7 {[%clk 0:00:04.2]} 64. Qd7+ {[%clk 0:00:04.3]}
64... Qf7 {[%clk 0:00:04.8]} 65. Qd5 {[%clk 0:00:03.8]} 65... Kg6 {[%clk
0:00:04.9]} 66. Qe4+ {[%clk 0:00:03.2]} 66... Kg7 {[%clk 0:00:04.8]} 67. Qe5+
{[%clk 0:00:03.6]} 67... Qf6 {[%clk 0:00:04.9]} 68. Qc7+ {[%clk 0:00:03.5]}
68... Kh6 {[%clk 0:00:05.2]} 69. Qc2 {[%clk 0:00:02.7]} 69... f3 {[%clk
0:00:04.8]} 70. Kg3 {[%clk 0:00:02.5]} 70... Qe5+ {[%clk 0:00:04.4]} 71. Kf2
{[%clk 0:00:02.2]} 71... Qf4 {[%clk 0:00:05.3]} 0-1

[Event "*** Titled Tuesday Blitz"]
[Site "Chess.com"]
[Date "2021.02.16"]
[Round "1"]
[White "MasterKroket"]
[Black "night_player"]
[Result "1/2-1/2"]
[WhiteElo "2506"]
[BlackElo "2166"]
[TimeControl "180+1"]
[EndTime "10:08:55 PST"]
[Termination "Game drawn by repetition"]

1. d4 {[%clk 0:03:00.9]} 1... f5 {[%clk 0:02:59.4]} 2. c4 {[%clk 0:02:58.3]}
2... d6 {[%clk 0:02:58.5]} 3. Nf3 {[%clk 0:02:58.3]} 3... Nf6 {[%clk 0:02:58.1]}
4. Nc3 {[%clk 0:02:57.9]} 4... g6 {[%clk 0:02:58.1]} 5. g3 {[%clk 0:02:56.7]}
5... Bg7 {[%clk 0:02:58.4]} 6. Bg2 {[%clk 0:02:56.6]} 6... O-O {[%clk
0:02:58.9]} 7. O-O {[%clk 0:02:57.3]} 7... c6 {[%clk 0:02:58.4]} 8. d5 {[%clk
0:02:57.5]} 8... e5 {[%clk 0:02:55]} 9. dxe6 {[%clk 0:02:57.4]} 9... Bxe6 {[%clk
0:02:54.8]} 10. b3 {[%clk 0:02:56.1]} 10... Qc7 {[%clk 0:02:47.8]} 11. Bf4
{[%clk 0:02:48.8]} 11... Rd8 {[%clk 0:02:42.1]} 12. Rc1 {[%clk 0:02:46.9]} 12...
Na6 {[%clk 0:02:35.5]} 13. Ng5 {[%clk 0:02:43.4]} 13... Bf7 {[%clk 0:02:33.4]}
14. e4 {[%clk 0:02:40.3]} 14... Nh5 {[%clk 0:02:07.6]} 15. Be3 {[%clk 0:02:28]}
15... fxe4 {[%clk 0:01:44.4]} 16. Nxf7 {[%clk 0:02:24.5]} 16... Qxf7 {[%clk
0:01:43.3]} 17. Nxe4 {[%clk 0:02:25.2]} 17... Qf8 {[%clk 0:01:29.3]} 18. Ng5
{[%clk 0:02:20]} 18... Re8 {[%clk 0:01:27.1]} 19. Re1 {[%clk 0:02:14.1]} 19...
Kh8 {[%clk 0:01:08.2]} 20. Qd2 {[%clk 0:02:06.7]} 20... Nc5 {[%clk 0:01:00.2]}
21. b4 {[%clk 0:02:02.5]} 21... Ne6 {[%clk 0:00:56.8]} 22. Ne4 {[%clk
0:01:57.6]} 22... Red8 {[%clk 0:00:48.7]} 23. Red1 {[%clk 0:01:51.2]} 23... d5
{[%clk 0:00:46.5]} 24. cxd5 {[%clk 0:01:51.7]} 24... Rxd5 {[%clk 0:00:45.9]} 25.
Qc2 {[%clk 0:01:49.9]} 25... Rxd1+ {[%clk 0:00:36.9]} 26. Rxd1 {[%clk
0:01:48.5]} 26... Qxb4 {[%clk 0:00:33.6]} 27. Rb1 {[%clk 0:01:47.8]} 27... Qe7
{[%clk 0:00:32.9]} 28. Qb3 {[%clk 0:01:43.1]} 28... b6 {[%clk 0:00:30.8]} 29. a4
{[%clk 0:01:36.5]} 29... Rb8 {[%clk 0:00:28]} 30. a5 {[%clk 0:01:36.2]} 30...
Nf6 {[%clk 0:00:21.4]} 31. Nxf6 {[%clk 0:01:35.2]} 31... Bxf6 {[%clk 0:00:21]}
32. Bxc6 {[%clk 0:01:35.4]} 32... Nc5 {[%clk 0:00:20.2]} 33. Qc4 {[%clk
0:01:28.2]} 33... Rc8 {[%clk 0:00:16.7]} 34. Bg2 {[%clk 0:01:27]} 34... Qc7
{[%clk 0:00:15.5]} 35. axb6 {[%clk 0:01:26.8]} 35... axb6 {[%clk 0:00:16.4]} 36.
Bh3 {[%clk 0:01:24.9]} 36... Rd8 {[%clk 0:00:14.3]} 37. Qb5 {[%clk 0:01:24.9]}
37... Nd7 {[%clk 0:00:09.5]} 38. Rd1 {[%clk 0:01:23.8]} 38... Ne5 {[%clk
0:00:08.9]} 39. Rxd8+ {[%clk 0:01:22.6]} 39... Qxd8 {[%clk 0:00:09.8]} 40. Qe2
{[%clk 0:01:04.4]} 40... Qd6 {[%clk 0:00:08.9]} 41. Bg2 {[%clk 0:00:59.2]} 41...
Kg7 {[%clk 0:00:07.4]} 42. f4 {[%clk 0:00:59.3]} 42... Nd3 {[%clk 0:00:06.9]}
43. Be4 {[%clk 0:00:54.5]} 43... Nc5 {[%clk 0:00:06.4]} 44. Bf3 {[%clk
0:00:54.2]} 44... Qd3 {[%clk 0:00:05.6]} 45. Qf2 {[%clk 0:00:49.5]} 45... Qb1+
{[%clk 0:00:05.3]} 46. Kg2 {[%clk 0:00:49.3]} 46... Qb5 {[%clk 0:00:03.7]} 47.
Qd2 {[%clk 0:00:45.7]} 47... Qd3 {[%clk 0:00:03.5]} 48. Qc1 {[%clk 0:00:42.5]}
48... Qb5 {[%clk 0:00:03.2]} 49. h4 {[%clk 0:00:35.8]} 49... Qb2+ {[%clk
0:00:03.5]} 50. Qxb2 {[%clk 0:00:34.7]} 50... Bxb2 {[%clk 0:00:04.4]} 51. Be2
{[%clk 0:00:32.7]} 51... Kf6 {[%clk 0:00:04.5]} 52. Kf3 {[%clk 0:00:32.8]} 52...
h6 {[%clk 0:00:04.5]} 53. g4 {[%clk 0:00:32.1]} 53... Ne6 {[%clk 0:00:03.8]} 54.
Bc4 {[%clk 0:00:22.7]} 54... Nd4+ {[%clk 0:00:03.9]} 55. Ke4 {[%clk 0:00:22.7]}
55... Nc6 {[%clk 0:00:03.5]} 56. Bxb6 {[%clk 0:00:22]} 56... Ne7 {[%clk
0:00:03.2]} 57. Bd8 {[%clk 0:00:21.9]} 57... Ba3 {[%clk 0:00:02.4]} 58. g5+
{[%clk 0:00:21.4]} 58... hxg5 {[%clk 0:00:03.3]} 59. hxg5+ {[%clk 0:00:20.6]}
59... Kg7 {[%clk 0:00:04.2]} 60. Ke5 {[%clk 0:00:20.9]} 60... Nf5 {[%clk
0:00:04.2]} 61. Ke6 {[%clk 0:00:19.5]} 61... Bc1 {[%clk 0:00:03.8]} 62. Bf6+
{[%clk 0:00:19.9]} 62... Kh7 {[%clk 0:00:03.8]} 63. Be5 {[%clk 0:00:20.5]} 63...
Ne3 {[%clk 0:00:03]} 64. Bb5 {[%clk 0:00:20]} 64... Ng2 {[%clk 0:00:02.7]} 65.
f5 {[%clk 0:00:17.2]} 65... gxf5 {[%clk 0:00:02.5]} 66. Kxf5 {[%clk 0:00:16.3]}
66... Ne3+ {[%clk 0:00:01.5]} 67. Ke6 {[%clk 0:00:13.5]} 67... Ng4 {[%clk
0:00:01.9]} 68. Bd3+ {[%clk 0:00:13.9]} 68... Kg8 {[%clk 0:00:02.6]} 69. Bf6
{[%clk 0:00:11.3]} 69... Nxf6 {[%clk 0:00:02.8]} 70. gxf6 {[%clk 0:00:11.1]}
70... Kf8 {[%clk 0:00:03.7]} 71. Bb5 {[%clk 0:00:10.4]} 71... Bb2 {[%clk
0:00:04.6]} 72. f7 {[%clk 0:00:10.5]} 72... Bc3 {[%clk 0:00:04.1]} 73. Bc6
{[%clk 0:00:09.7]} 73... Bb4 {[%clk 0:00:05]} 74. Kf5 {[%clk 0:00:09.3]} 74...
Ba3 {[%clk 0:00:05.9]} 75. Bd7 {[%clk 0:00:08.9]} 75... Bb4 {[%clk 0:00:06.8]}
76. Bc6 {[%clk 0:00:09.1]} 76... Ba3 {[%clk 0:00:07.7]} 77. Bd7 {[%clk
0:00:09.8]} 77... Bb4 {[%clk 0:00:08.5]} 78. Bc6 {[%clk 0:00:10.5]} 1/2-1/2

[Event "*** Titled Tuesday Blitz"]
[Site "Chess.com"]
[Date "2021.02.16"]
[Round "1"]
[White "albi1999"]
[Black "ChadBiryani"]
[Result "1-0"]
[WhiteElo "2607"]
[BlackElo "2306"]
[TimeControl "180+1"]
[EndTime "10:09:05 PST"]
[Termination "albi1999 won by resignation"]

1. d4 {[%clk 0:02:51.4]} 1... f5 {[%clk 0:02:56.2]} 2. e4 {[%clk 0:02:46.2]}
2... fxe4 {[%clk 0:02:55]} 3. Nc3 {[%clk 0:02:47.1]} 3... Nf6 {[%clk 0:02:54.4]}
4. Bg5 {[%clk 0:02:46.5]} 4... b6 {[%clk 0:02:53.7]} 5. f3 {[%clk 0:02:34.3]}
5... exf3 {[%clk 0:02:52.5]} 6. Nxf3 {[%clk 0:02:35.2]} 6... Bb7 {[%clk
0:02:52.6]} 7. Bd3 {[%clk 0:02:32.7]} 7... e6 {[%clk 0:02:48.5]} 8. O-O {[%clk
0:02:31.4]} 8... Be7 {[%clk 0:02:48.4]} 9. Ne5 {[%clk 0:02:21.2]} 9... O-O
{[%clk 0:02:22.1]} 10. Bxf6 {[%clk 0:01:59.3]} 10... Rxf6 {[%clk 0:02:17.1]} 11.
Qh5 {[%clk 0:01:47.3]} 11... Rh6 {[%clk 0:01:42.5]} 12. Qf7+ {[%clk 0:01:39.7]}
12... Kh8 {[%clk 0:01:42.4]} 13. Rf2 {[%clk 0:01:23.2]} 13... Nc6 {[%clk
0:01:37.9]} 14. Ng4 {[%clk 0:01:09.8]} 14... Rh4 {[%clk 0:01:29]} 15. Qf4 {[%clk
0:01:03.4]} 15... Bg5 {[%clk 0:01:22.4]} 16. Qg3 {[%clk 0:01:01.7]} 16... Nxd4
{[%clk 0:01:21.1]} 17. Raf1 {[%clk 0:00:58.8]} 17... Qg8 {[%clk 0:01:12.6]} 18.
Ne5 {[%clk 0:00:57.5]} 18... Bf6 {[%clk 0:01:09.8]} 19. Rxf6 {[%clk 0:00:56.8]}
19... gxf6 {[%clk 0:01:09.8]} 20. Ng6+ {[%clk 0:00:30.2]} 20... hxg6 {[%clk
0:01:08.9]} 21. Qxh4+ {[%clk 0:00:29.7]} 21... Kg7 {[%clk 0:01:09]} 22. Qxd4
{[%clk 0:00:29.5]} 22... Qf7 {[%clk 0:01:06.7]} 23. Be4 {[%clk 0:00:26]} 23...
Bxe4 {[%clk 0:01:01.4]} 24. Nxe4 {[%clk 0:00:25.7]} 24... e5 {[%clk 0:01:01.2]}
25. Qf2 {[%clk 0:00:25.8]} 25... Rf8 {[%clk 0:01:00.7]} 26. Qh4 {[%clk
0:00:24.4]} 26... Qe6 {[%clk 0:00:49.1]} 27. h3 {[%clk 0:00:17.4]} 27... d5
{[%clk 0:00:49.2]} 28. Nf2 {[%clk 0:00:15.9]} 28... Rh8 {[%clk 0:00:46.6]} 29.
Qg3 {[%clk 0:00:16.5]} 29... c5 {[%clk 0:00:46.2]} 30. Ng4 {[%clk 0:00:17]}
30... Rf8 {[%clk 0:00:34.3]} 31. Qh4 {[%clk 0:00:17.1]} 31... Rh8 {[%clk
0:00:28.3]} 32. Qxf6+ {[%clk 0:00:16.3]} 32... Qxf6 {[%clk 0:00:28.8]} 33. Rxf6
{[%clk 0:00:16.5]} 33... Re8 {[%clk 0:00:29.1]} 34. Rd6 {[%clk 0:00:15.8]} 34...
d4 {[%clk 0:00:29.3]} 35. Nf6 {[%clk 0:00:13.8]} 35... Re7 {[%clk 0:00:26.7]}
36. Ne4 {[%clk 0:00:13.9]} 36... c4 {[%clk 0:00:23.8]} 37. a4 {[%clk 0:00:13]}
37... Rf7 {[%clk 0:00:19.5]} 38. Re6 {[%clk 0:00:12.7]} 38... Rf5 {[%clk
0:00:18.7]} 39. g3 {[%clk 0:00:10.8]} 39... Kf7 {[%clk 0:00:14.7]} 40. Rc6
{[%clk 0:00:10.3]} 40... Ke7 {[%clk 0:00:12.9]} 41. Rxc4 {[%clk 0:00:09.5]}
41... Kd7 {[%clk 0:00:13.3]} 42. b3 {[%clk 0:00:09.1]} 42... Rf3 {[%clk
0:00:13.3]} 43. Kg2 {[%clk 0:00:07.9]} 43... Re3 {[%clk 0:00:13.8]} 44. Nf2
{[%clk 0:00:08.8]} 44... Re2 {[%clk 0:00:14.1]} 45. Kf3 {[%clk 0:00:08.7]} 45...
Re3+ {[%clk 0:00:14.9]} 46. Kg2 {[%clk 0:00:08.5]} 46... Kd6 {[%clk 0:00:15.3]}
47. Kf1 {[%clk 0:00:09.4]} 47... Kd5 {[%clk 0:00:15]} 48. g4 {[%clk 0:00:09.8]}
48... e4 {[%clk 0:00:14.7]} 49. Rc8 {[%clk 0:00:10.3]} 49... Rf3 {[%clk
0:00:14.2]} 50. Rd8+ {[%clk 0:00:09.9]} 50... Kc5 {[%clk 0:00:14.7]} 51. Ke2
{[%clk 0:00:08.9]} 51... Rf4 {[%clk 0:00:15.1]} 52. Re8 {[%clk 0:00:08.7]} 52...
Kd5 {[%clk 0:00:14.5]} 53. g5 {[%clk 0:00:07.7]} 53... Rh4 {[%clk 0:00:13.3]}
54. Rd8+ {[%clk 0:00:04.1]} 54... Ke5 {[%clk 0:00:13.4]} 55. Rg8 {[%clk
0:00:05]} 55... e3 {[%clk 0:00:13.6]} 56. Nd3+ {[%clk 0:00:04.5]} 56... Kf5
{[%clk 0:00:13.7]} 57. Rd8 {[%clk 0:00:03.4]} 57... Kxg5 {[%clk 0:00:13.3]} 58.
Rd5+ {[%clk 0:00:04.3]} 58... Kf6 {[%clk 0:00:13.3]} 59. b4 {[%clk 0:00:04.8]}
59... Ke6 {[%clk 0:00:13.6]} 60. Rd8 {[%clk 0:00:04.4]} 60... g5 {[%clk
0:00:11.6]} 61. b5 {[%clk 0:00:03.5]} 61... Rxh3 {[%clk 0:00:10.5]} 62. Rxd4
{[%clk 0:00:03.5]} 62... Kf5 {[%clk 0:00:10]} 63. Rd5+ {[%clk 0:00:03.6]} 63...
Ke4 {[%clk 0:00:09.5]} 64. Rxg5 {[%clk 0:00:03.7]} 64... Rh2+ {[%clk 0:00:09.6]}
65. Kf1 {[%clk 0:00:04.2]} 65... Rxc2 {[%clk 0:00:08.4]} 66. Nb4 {[%clk
0:00:02.8]} 66... Rb2 {[%clk 0:00:08.1]} 67. Nc6 {[%clk 0:00:02.8]} 67... Kf4
{[%clk 0:00:08.3]} 68. Rd5 {[%clk 0:00:02.7]} 68... Kf3 {[%clk 0:00:08.5]} 69.
Rf5+ {[%clk 0:00:02.8]} 69... Ke4 {[%clk 0:00:09.1]} 70. Rf8 {[%clk 0:00:03.7]}
70... Kd3 {[%clk 0:00:07]} 71. Rd8+ {[%clk 0:00:04.2]} 71... Ke4 {[%clk
0:00:07.2]} 72. Ke1 {[%clk 0:00:05.1]} 72... Kf3 {[%clk 0:00:07.3]} 73. Nd4+
{[%clk 0:00:05.6]} 73... Ke4 {[%clk 0:00:07.5]} 74. Ne2 {[%clk 0:00:05.8]} 74...
Ra2 {[%clk 0:00:07.7]} 75. Rd1 {[%clk 0:00:05.8]} 75... Rxa4 {[%clk 0:00:07.7]}
76. Nc3+ {[%clk 0:00:06.4]} 76... Ke5 {[%clk 0:00:05.7]} 77. Nxa4 {[%clk
0:00:07.3]} 77... Ke4 {[%clk 0:00:06.3]} 78. Ke2 {[%clk 0:00:08.2]} 1-0

[Event "*** Titled Tuesday Blitz"]
[Site "Chess.com"]
[Date "2021.02.16"]
[Round "1"]
[White "Korchmar_Vasiliy"]
[Black "ChelsieMonica"]
[Result "1-0"]
[WhiteElo "2619"]
[BlackElo "2318"]
[TimeControl "180+1"]
[EndTime "10:09:14 PST"]
[Termination "Korchmar_Vasiliy won on time"]

1. e4 {[%clk 0:03:00.9]} 1... e5 {[%clk 0:02:59.4]} 2. Nf3 {[%clk 0:03:01.1]}
2... Nc6 {[%clk 0:02:57.6]} 3. Nc3 {[%clk 0:02:59.9]} 3... Nf6 {[%clk
0:02:57.1]} 4. Bb5 {[%clk 0:02:59.6]} 4... Be7 {[%clk 0:02:55.3]} 5. Bxc6 {[%clk
0:02:50]} 5... dxc6 {[%clk 0:02:54.7]} 6. Nxe5 {[%clk 0:02:49.2]} 6... Nxe4
{[%clk 0:02:45.4]} 7. Qf3 {[%clk 0:02:29.9]} 7... Nf6 {[%clk 0:02:43]} 8. O-O
{[%clk 0:02:25.8]} 8... O-O {[%clk 0:02:42.7]} 9. d3 {[%clk 0:02:21.7]} 9... h6
{[%clk 0:02:41.9]} 10. Bf4 {[%clk 0:02:13.6]} 10... Bd6 {[%clk 0:02:39.8]} 11.
Rfe1 {[%clk 0:02:09.1]} 11... a6 {[%clk 0:02:36.3]} 12. h3 {[%clk 0:02:08.3]}
12... Re8 {[%clk 0:02:27.7]} 13. Re2 {[%clk 0:02:04.1]} 13... Be6 {[%clk
0:02:23.3]} 14. Rae1 {[%clk 0:02:02.8]} 14... Nd5 {[%clk 0:02:20.8]} 15. Bd2
{[%clk 0:01:52.8]} 15... Nxc3 {[%clk 0:02:03.8]} 16. Bxc3 {[%clk 0:01:52.3]}
16... Bd5 {[%clk 0:02:02.7]} 17. Qh5 {[%clk 0:01:43.6]} 17... Qg5 {[%clk
0:01:57.8]} 18. Qxg5 {[%clk 0:01:39.7]} 18... hxg5 {[%clk 0:01:58.7]} 19. f3
{[%clk 0:01:20.1]} 19... b5 {[%clk 0:01:50.4]} 20. b3 {[%clk 0:00:54.9]} 20...
f6 {[%clk 0:01:47.2]} 21. Ng4 {[%clk 0:00:53.5]} 21... Kf7 {[%clk 0:01:43.8]}
22. Nf2 {[%clk 0:00:48.2]} 22... Bc5 {[%clk 0:01:38]} 23. Kf1 {[%clk 0:00:45.9]}
23... f5 {[%clk 0:01:31.9]} 24. Rxe8 {[%clk 0:00:42.7]} 24... Rxe8 {[%clk
0:01:30.8]} 25. Rxe8 {[%clk 0:00:43.6]} 25... Kxe8 {[%clk 0:01:30.6]} 26. Bxg7
{[%clk 0:00:44.2]} 26... Kf7 {[%clk 0:01:26.9]} 27. Be5 {[%clk 0:00:44.1]} 27...
Bb6 {[%clk 0:01:24.2]} 28. c4 {[%clk 0:00:42.2]} 28... Be6 {[%clk 0:01:22.5]}
29. Ke2 {[%clk 0:00:38.9]} 29... a5 {[%clk 0:01:16.6]} 30. Nd1 {[%clk
0:00:27.8]} 30... a4 {[%clk 0:01:14.6]} 31. Nc3 {[%clk 0:00:21.4]} 31... axb3
{[%clk 0:01:12.8]} 32. axb3 {[%clk 0:00:21.5]} 32... Ba5 {[%clk 0:01:09.7]} 33.
Nd1 {[%clk 0:00:18.4]} 33... g4 {[%clk 0:00:58.8]} 34. fxg4 {[%clk 0:00:13.3]}
34... fxg4 {[%clk 0:00:59.7]} 35. Nf2 {[%clk 0:00:08.8]} 35... gxh3 {[%clk
0:00:57.2]} 36. gxh3 {[%clk 0:00:09.7]} 36... Kg6 {[%clk 0:00:55.8]} 37. Kf3
{[%clk 0:00:06.4]} 37... Kh5 {[%clk 0:00:56.1]} 38. Kg2 {[%clk 0:00:03.8]} 38...
Bf5 {[%clk 0:00:48.7]} 39. Ne4 {[%clk 0:00:04]} 39... Kh4 {[%clk 0:00:45.2]} 40.
Bf6+ {[%clk 0:00:03.8]} 40... Kh5 {[%clk 0:00:44.4]} 41. Ng3+ {[%clk 0:00:04.1]}
41... Kg6 {[%clk 0:00:44.7]} 42. Nxf5 {[%clk 0:00:03]} 42... Kxf6 {[%clk
0:00:44.6]} 43. Nd4 {[%clk 0:00:02.6]} 43... bxc4 {[%clk 0:00:42.2]} 44. bxc4
{[%clk 0:00:02]} 44... c5 {[%clk 0:00:42.7]} 45. Nb3 {[%clk 0:00:02.3]} 45...
Bb4 {[%clk 0:00:42.5]} 46. Kf3 {[%clk 0:00:02.7]} 46... Kg5 {[%clk 0:00:42.8]}
47. Kg3 {[%clk 0:00:02.8]} 47... Be1+ {[%clk 0:00:42.1]} 48. Kf3 {[%clk
0:00:03.1]} 48... Bb4 {[%clk 0:00:38.8]} 49. Ke4 {[%clk 0:00:03.6]} 49... Kh4
{[%clk 0:00:37.4]} 50. Kd5 {[%clk 0:00:04.1]} 50... Kxh3 {[%clk 0:00:38.3]} 51.
Nxc5 {[%clk 0:00:04.6]} 51... Kg4 {[%clk 0:00:38.2]} 52. Na6 {[%clk 0:00:05.2]}
52... Ba5 {[%clk 0:00:37.9]} 53. Kc6 {[%clk 0:00:05.6]} 53... Kf4 {[%clk
0:00:37.9]} 54. d4 {[%clk 0:00:05.9]} 54... Ke4 {[%clk 0:00:37.9]} 55. d5 {[%clk
0:00:05]} 55... Kd4 {[%clk 0:00:38.4]} 56. Nxc7 {[%clk 0:00:05.4]} 56... Kxc4
{[%clk 0:00:37.3]} 57. d6 {[%clk 0:00:06]} 57... Bb4 {[%clk 0:00:35.3]} 58. d7
{[%clk 0:00:06.1]} 58... Be7 {[%clk 0:00:35.3]} 59. Nb5 {[%clk 0:00:04.1]} 59...
Bd8 {[%clk 0:00:31.8]} 60. Nd6+ {[%clk 0:00:03.6]} 60... Kd4 {[%clk 0:00:32.2]}
61. Nf7 {[%clk 0:00:03.5]} 61... Be7 {[%clk 0:00:29.7]} 62. Nh6 {[%clk
0:00:03.4]} 62... Ke5 {[%clk 0:00:28.1]} 63. Ng4+ {[%clk 0:00:02.7]} 63... Ke6
{[%clk 0:00:27.8]} 64. Ne3 {[%clk 0:00:02.9]} 64... Bd8 {[%clk 0:00:27.2]} 65.
Nd5 {[%clk 0:00:03.3]} 65... Bh4 {[%clk 0:00:21.5]} 66. Nc7+ {[%clk 0:00:04.2]}
66... Kf7 {[%clk 0:00:20.1]} 67. Na8 {[%clk 0:00:02.7]} 67... Bd8 {[%clk
0:00:19.6]} 68. Nb6 {[%clk 0:00:02.1]} 68... Ke7 {[%clk 0:00:18.8]} 69. Nd5+
{[%clk 0:00:02.4]} 69... Ke6 {[%clk 0:00:19.2]} 70. Nf4+ {[%clk 0:00:02.9]}
70... Ke7 {[%clk 0:00:19]} 71. Nd3 {[%clk 0:00:03.8]} 71... Ke6 {[%clk
0:00:19.1]} 72. Nc5+ {[%clk 0:00:03.2]} 72... Kf7 {[%clk 0:00:18.7]} 73. Kb7
{[%clk 0:00:03.5]} 73... Ke7 {[%clk 0:00:17]} 74. Kc8 {[%clk 0:00:04.4]} 74...
Bb6 {[%clk 0:00:06.9]} 75. Na4 {[%clk 0:00:04.6]} 75... Ba5 {[%clk 0:00:06.1]}
76. Nc3 {[%clk 0:00:05.5]} 76... Kd6 {[%clk 0:00:05.1]} 77. Nb5+ {[%clk
0:00:05.5]} 77... Kc6 {[%clk 0:00:05.1]} 78. Nd4+ {[%clk 0:00:04.8]} 78... Kd6
{[%clk 0:00:05.1]} 79. Nb3 {[%clk 0:00:05]} 79... Bb6 {[%clk 0:00:05]} 80. Nd2
{[%clk 0:00:05.5]} 1-0